fUSD/lending_fUSD_20250208
["ID","MTS","AMOUNT","RATE_DAILY","PERIOD"]
[352241538,1739013130326,-204.934926,0.00012329,2]
[352241539,1739013130335,-204.934926,0.00012329,2]
[352241540,1739013130345,-204.934926,0.00012329,2]
[352241541,1739013130354,-204.934926,0.00012329,2]
[352241542,1739013130364,-204.934926,0.00012329,2]
[352241543,1739013130378,-204.934926,0.00012329,2]
[352241544,1739013130388,-204.934926,0.00012329,2]
[352241545,1739013130397,-204.934926,0.00012329,2]
[352241546,1739013130407,-204.934926,0.00012329,2]
[352241547,1739013130417,-204.934926,0.00012329,2]
[352241548,1739013130427,-204.934926,0.00012329,2]
[352241549,1739013130436,-204.934936,0.00012329,2]
[352241550,1739013130447,-151.0,0.00012329,2]
[352241551,1739013130457,-151.0,0.00012329,2]
[352241552,1739013130466,-151.0,0.00012329,2]
[352241553,1739013130475,-151.0,0.00012329,2]
[352241554,1739013130484,-151.0,0.00012329,2]
[352241555,1739013130495,-151.0,0.00012329,2]
[352241556,1739013130504,-151.0,0.00012329,2]
[352241557,1739013130513,-151.0,0.00012329,2]
[352241558,1739013130523,-151.0,0.00012329,2]
[352241559,1739013130533,-151.0,0.00012329,2]
[352241560,1739013130542,-151.0,0.00012329,2]
[352241561,1739013130552,-151.0,0.00012329,2]
[352241562,1739013130561,-151.0,0.00012329,2]
[352241563,1739013130571,-151.0,0.00012329,2]
[352241564,1739013130580,-276.193557,0.00012329,2]
[352241565,1739013130589,-435.924878,0.00012329,2]
[352241566,1739013130598,-435.924878,0.00012329,2]
[352241567,1739013130607,-435.924878,0.00012329,2]
[352241568,1739013130617,-338.579282,0.00012329,2]
[352241569,1739013130626,-435.924878,0.00012329,2]
[352241570,1739013130636,-338.579282,0.00012329,2]
[352241571,1739013130645,-435.924878,0.00012329,2]
[352241572,1739013130655,-435.924878,0.00012329,2]
[352241573,1739013130673,-338.579282,0.00012329,2]
[352241574,1739013130682,-338.579282,0.00012329,2]
[352241575,1739013130691,-338.579282,0.00012329,2]
[352241576,1739013130700,-435.924878,0.00012329,2]
[352241577,1739013130709,-435.924878,0.00012329,2]
[352241578,1739013130718,-338.579282,0.00012329,2]
[352241579,1739013130728,-338.579282,0.00012329,2]
[352241580,1739013130737,-435.924878,0.00012329,2]
[352241581,1739013130746,-338.579282,0.00012329,2]
[352241582,1739013130755,-338.579282,0.00012329,2]
[352241583,1739013130764,-435.924878,0.00012329,2]
[352241584,1739013130773,-297.298576,0.00012329,2]
[352241585,1739013130783,-338.579282,0.00012329,2]
[352241586,1739013130795,-435.924878,0.00012329,2]
[352241587,1739013130804,-338.579282,0.00012329,2]
[352241588,1739013130814,-435.924878,0.00012329,2]
[352241589,1739013130823,-338.579282,0.00012329,2]
[352241590,1739013130833,-435.924878,0.00012329,2]
[352241591,1739013130842,-338.579282,0.00012329,2]
[352241592,1739013130851,-435.924878,0.00012329,2]
[352241593,1739013130861,-338.579282,0.00012329,2]
[352241594,1739013130870,-435.924878,0.00012329,2]
[352241595,1739013130879,-338.579282,0.00012329,2]
[352241596,1739013130889,-435.924878,0.00012329,2]
[352241597,1739013130899,-338.579282,0.00012329,2]
[352241598,1739013130908,-435.924878,0.00012329,2]
[352241599,1739013130917,-338.579282,0.00012329,2]
[352241600,1739013130927,-435.924878,0.00012329,2]
[352241601,1739013130937,-338.579282,0.00012329,2]
[352241602,1739013130946,-435.924878,0.00012329,2]
[352241603,1739013130955,-338.579282,0.00012329,2]
[352241604,1739013130967,-435.924884,0.00012329,2]
[352241605,1739013130976,-338.579274,0.00012329,2]
[352241606,1739013130986,-151.0,0.00012329,2]
[352241607,1739013130995,-151.0,0.00012329,2]
[352241608,1739013131006,-151.0,0.00012329,2]
[352241609,1739013131015,-151.515093,0.00012329,2]
[352241610,1739013131025,-151.0,0.00012329,2]
[352241611,1739013131034,-151.190563,0.00012329,2]
[352241612,1739013131043,-151.0,0.00012329,2]
[352241613,1739013131053,-151.0,0.00012329,2]
[352241614,1739013131062,-151.423001,0.00012329,2]
[352241615,1739013131073,-151.0,0.00012329,2]
[352241616,1739013131083,-151.0,0.00012329,2]
[352241617,1739013131092,-151.0,0.00012329,2]
[352241618,1739013131101,-151.0,0.00012329,2]
[352241619,1739013131110,-151.0,0.00012329,2]
[352241620,1739013131120,-151.0,0.00012329,2]
[352241621,1739013131130,-151.0,0.00012329,2]
[352241622,1739013131140,-151.0,0.00012329,2]
[352241623,1739013131149,-151.0,0.00012329,2]
[352241624,1739013131160,-151.0,0.00012329,2]
[352241625,1739013131170,-201.88164,0.00012329,2]
[352241626,1739013131179,-324.314673,0.00012329,2]
[352241627,1739013131190,-324.314673,0.00012329,2]
[352241628,1739013131200,-324.314673,0.00012329,2]
[352241629,1739013131209,-324.314673,0.00012329,2]
[352241630,1739013131220,-324.314673,0.00012329,2]
[352241631,1739013131231,-324.314673,0.00012329,2]
[352241632,1739013131240,-324.314673,0.00012329,2]
[352241633,1739013131250,-324.314673,0.00012329,2]
[352241634,1739013131260,-324.314673,0.00012329,2]
[352241635,1739013131269,-324.314673,0.00012329,2]
[352241636,1739013131278,-324.314673,0.00012329,2]
[352241637,1739013131288,-324.314673,0.00012329,2]
[352241638,1739013131298,-324.314673,0.00012329,2]
[352241639,1739013131307,-324.314673,0.00012329,2]
[352241640,1739013131317,-324.314673,0.00012329,2]
[352241641,1739013131326,-324.314673,0.00012329,2]
[352241642,1739013131336,-324.314673,0.00012329,2]
[352241643,1739013131345,-324.314673,0.00012329,2]
[352241644,1739013131355,-324.314673,0.00012329,2]
[352241645,1739013131365,-324.314666,0.00012329,2]
[352241646,1739013131379,-151.0,0.00012329,2]
[352241647,1739013131388,-151.0,0.00012329,2]
[352241648,1739013131398,-151.0,0.00012329,2]
[352241649,1739013131407,-151.0,0.00012329,2]
[352241650,1739013131418,-151.0,0.00012329,2]
[352241651,1739013131428,-151.0,0.00012329,2]
[352241652,1739013131437,-151.0,0.00012329,2]
[352241653,1739013131447,-151.0,0.00012329,2]
[352241654,1739013131458,-151.0,0.00012329,2]
[352241655,1739013131469,-151.0,0.00012329,2]
[352241656,1739013131479,-151.0,0.00012329,2]
[352241657,1739013131488,-151.0,0.00012329,2]
[352241658,1739013131499,-151.0,0.00012329,2]
[352241659,1739013131509,-151.0,0.00012329,2]
[352241660,1739013131519,-151.0,0.00012329,2]
[352241661,1739013131528,-151.0,0.00012329,2]
[352241662,1739013131537,-151.0,0.00012329,2]
[352241663,1739013131547,-151.0,0.00012329,2]
[352241664,1739013131558,-275.93985,0.00012329,2]
[352241665,1739013131568,-296.0,0.00012329,2]
[352241666,1739013131578,-296.0,0.00012329,2]
[352241667,1739013131587,-296.0,0.00012329,2]
[352241668,1739013131597,-296.0,0.00012329,2]
[352241669,1739013131608,-296.0,0.00012329,2]
[352241670,1739013131619,-296.0,0.00012329,2]
[352241671,1739013131630,-10000.0,0.00012329,2]
[352241672,1739013131639,-296.0,0.00012329,2]
[352241673,1739013131650,-10000.0,0.00012329,2]
[352241674,1739013131660,-296.0,0.00012329,2]
[352241675,1739013131670,-10000.0,0.00012329,2]
[352241676,1739013131679,-296.0,0.00012329,2]
[352241677,1739013131689,-10000.0,0.00012329,2]
[352241678,1739013131699,-296.0,0.00012329,2]
[352241679,1739013131709,-10000.0,0.00012329,2]
[352241680,1739013131719,-296.0,0.00012329,2]
[352241681,1739013131729,-296.0,0.00012329,2]
[352241682,1739013131741,-10000.0,0.00012329,2]
[352241683,1739013131751,-296.0,0.00012329,2]
[352241684,1739013131761,-10000.0,0.00012329,2]
[352241685,1739013131771,-296.0,0.00012329,2]
[352241686,1739013131781,-10000.0,0.00012329,2]
[352241687,1739013131790,-296.0,0.00012329,2]
[352241688,1739013131800,-296.0,0.00012329,2]
[352241689,1739013131810,-296.0,0.00012329,2]
[352241690,1739013131820,-10000.0,0.00012329,2]
[352241691,1739013131829,-151.0,0.00012329,2]
[352241692,1739013131838,-296.0,0.00012329,2]
[352241693,1739013131847,-10000.0,0.00012329,2]
[352241694,1739013131857,-296.0,0.00012329,2]
[352241695,1739013131867,-10000.0,0.00012329,2]
[352241696,1739013131877,-151.0,0.00012329,2]
[352241697,1739013131886,-296.0,0.00012329,2]
[352241698,1739013131895,-10000.0,0.00012329,2]
[352241699,1739013131904,-151.0,0.00012329,2]
[352241700,1739013131913,-10000.0,0.00012329,2]
[352241701,1739013131922,-151.0,0.00012329,2]
[352241702,1739013131933,-10000.0,0.00012329,2]
[352241703,1739013131943,-151.0,0.00012329,2]
[352241704,1739013131952,-10000.0,0.00012329,2]
[352241705,1739013131962,-151.0,0.00012329,2]
[352241706,1739013131971,-10000.0,0.00012329,2]
[352241707,1739013131981,-151.0,0.00012329,2]
[352241708,1739013131990,-151.0,0.00012329,2]
[352241709,1739013132001,-10000.0,0.00012329,2]
[352241710,1739013132010,-151.0,0.00012329,2]
[352241711,1739013132020,-10000.0,0.00012329,2]
[352241712,1739013132030,-151.0,0.00012329,2]
[352241713,1739013132040,-10000.0,0.00012329,2]
[352241714,1739013132050,-151.0,0.00012329,2]
[352241715,1739013132061,-10000.0,0.00012329,2]
[352241716,1739013132070,-227.047572,0.00012329,2]
[352241717,1739013132081,-10000.0,0.00012329,2]
[352241718,1739013132090,-10000.0,0.00012329,2]
[352241719,1739013132100,-10000.0,0.00012329,2]
[352241720,1739013132111,-10000.0,0.00012329,2]
[352241721,1739013132121,-10000.0,0.00012329,2]
[352241722,1739013132131,-758.998056,0.00012329,2]
[352241723,1739013132142,-10000.0,0.00012329,2]
[352241724,1739013132151,-758.998056,0.00012329,2]
[352241725,1739013132161,-10000.0,0.00012329,2]
[352241726,1739013132170,-758.998056,0.00012329,2]
[352241727,1739013132180,-10000.0,0.00012329,2]
[352241728,1739013132189,-758.998056,0.00012329,2]
[352241729,1739013132201,-10000.0,0.00012329,2]
[352241730,1739013132210,-758.998056,0.00012329,2]
[352241731,1739013132221,-10000.0,0.00012329,2]
[352241732,1739013132231,-758.998056,0.00012329,2]
[352241733,1739013132243,-10000.0,0.00012329,2]
[352241734,1739013132253,-758.998056,0.00012329,2]
[352241735,1739013132263,-10000.0,0.00012329,2]
[352241736,1739013132274,-758.998056,0.00012329,2]
[352241737,1739013132284,-10000.0,0.00012329,2]
[352241738,1739013132294,-758.998056,0.00012329,2]
[352241739,1739013132305,-10000.0,0.00012329,2]
[352241740,1739013132314,-758.998056,0.00012329,2]
[352241741,1739013132324,-758.998056,0.00012329,2]
[352241742,1739013132333,-10000.0,0.00012329,2]
[352241743,1739013132343,-758.998056,0.00012329,2]
[352241744,1739013132352,-10000.0,0.00012329,2]
[352241745,1739013132361,-758.998056,0.00012329,2]
[352241746,1739013132373,-10000.0,0.00012329,2]
[352241747,1739013132382,-758.998056,0.00012329,2]
[352241748,1739013132391,-10000.0,0.00012329,2]
[352241749,1739013132400,-758.998056,0.00012329,2]
[352241750,1739013132411,-10000.0,0.00012329,2]
[352241751,1739013132420,-10000.0,0.00012329,2]
[352241752,1739013132429,-10000.0,0.00012329,2]
[352241753,1739013132438,-758.998056,0.00012329,2]
[352241754,1739013132450,-10000.0,0.00012329,2]
[352241755,1739013132460,-758.998056,0.00012329,2]
[352241756,1739013132470,-10000.0,0.00012329,2]
[352241757,1739013132479,-758.998056,0.00012329,2]
[352241758,1739013132489,-10000.0,0.00012329,2]
[352241759,1739013132499,-758.998056,0.00012329,2]
[352241760,1739013132509,-10000.0,0.00012329,2]
[352241761,1739013132518,-758.998065,0.00012329,2]
[352241762,1739013132734,-10000.0,0.00012329,2]
[352241763,1739013132745,-10000.0,0.00012329,2]
[352241764,1739013132754,-10000.0,0.00012329,2]
[352241765,1739013132764,-10000.0,0.00012329,2]
[352241766,1739013132775,-10000.0,0.00012329,2]
[352241767,1739013132784,-10000.0,0.00012329,2]
[352241768,1739013132794,-3690.446892,0.00012329,2]
[352241769,1739013132804,-2726.782577,0.00012329,2]
[352241770,1739013132813,-2726.782577,0.00012329,2]
[352241771,1739013132823,-2726.782577,0.00012329,2]
[352241772,1739013132832,-2726.782577,0.00012329,2]
[352241773,1739013132841,-2726.782577,0.00012329,2]
[352241774,1739013132849,-2726.782577,0.00012329,2]
[352241775,1739013132859,-2726.782577,0.00012329,2]
[352241776,1739013132868,-2726.782577,0.00012329,2]
[352241777,1739013132877,-2726.782577,0.00012329,2]
[352241778,1739013132886,-2726.782577,0.00012329,2]
[352241779,1739013132895,-2726.782577,0.00012329,2]
[352241780,1739013132904,-2726.782577,0.00012329,2]
[352241781,1739013132913,-2726.782577,0.00012329,2]
[352241782,1739013132923,-2726.782577,0.00012329,2]
[352241783,1739013132931,-2726.782577,0.00012329,2]
[352241784,1739013132941,-2726.782577,0.00012329,2]
[352241785,1739013132950,-2726.782577,0.00012329,2]
[352241786,1739013132959,-2726.782577,0.00012329,2]
[352241787,1739013132968,-2726.782577,0.00012329,2]
[352241788,1739013132977,-2726.782579,0.00012329,2]
[352241789,1739013132986,-151.0,0.00012329,2]
[352241790,1739013132996,-151.0,0.00012329,2]
[352241791,1739013133005,-151.0,0.00012329,2]
[352241792,1739013133015,-151.0,0.00012329,2]
[352241793,1739013133024,-239.649773,0.00012329,2]
[352241794,1739013133033,-151.0,0.00012329,2]
[352241795,1739013133043,-9053.73465627,0.00012359,2]
[352241796,1739013133053,-5000.0,0.00012359,2]
[352241797,1739013133064,-5000.0,0.00012359,2]
[352241798,1739013133075,-5000.0,0.00012359,2]
[352241799,1739013133083,-5000.0,0.00012359,2]
[352241800,1739013133093,-626.3577781,0.00012361,2]
[352241801,1739013133103,-1291.9049839,0.00012361,2]
[352241802,1739013133114,-2624.82,0.00012365,2]
[352241803,1739013133125,-2311.14,0.00012365,2]
[352241804,1739013133135,-1530.98,0.00012365,2]
[352241805,1739013133146,-2112.49,0.00012365,2]
[352241806,1739013133155,-5023.57,0.00012365,2]
[352241807,1739013133166,-4357.4,0.00012365,2]
[352241808,1739013133176,-500.0,0.00012365,2]
[352241809,1739013133184,-3534.9,0.00012365,2]
[352241810,1739013133194,-3593.71,0.00012365,2]
[352241811,1739013133206,-1030.68,0.00012365,2]
[352241812,1739013133216,-1465.28,0.00012365,2]
[352241813,1739013133226,-2712.71,0.00012365,2]
[352241814,1739013133238,-3901.85,0.00012365,2]
[352241815,1739013133250,-5908.12,0.00012365,2]
[352241816,1739013133259,-5342.84,0.00012365,2]
[352241817,1739013133269,-2391.85,0.00012365,2]
[352241818,1739013133279,-2076.57,0.00012365,2]
[352241819,1739013133288,-500.0,0.00012365,2]
[352241820,1739013133298,-5698.13,0.00012365,2]
[352241821,1739013133308,-2309.9,0.00012365,2]
[352241822,1739013133318,-2212.02,0.00012365,2]
[352241823,1739013133329,-500.0,0.00012365,2]
[352241824,1739013133340,-755.52,0.00012365,2]
[352241825,1739013133349,-1450.19,0.00012365,2]
[352241826,1739013133359,-755.35,0.00012365,2]
[352241827,1739013133371,-1681.08,0.00012365,2]
[352241828,1739013133382,-1214.99,0.00012365,2]
[352241829,1739013133391,-623.04,0.00012365,2]
[352241830,1739013133402,-2156.18,0.00012365,2]
[352241831,1739013133412,-5375.13,0.00012365,2]
[352241832,1739013133423,-155.827945,0.00012365,2]
[352241833,1739013133434,-1130.4,0.00012365,2]
[352241834,1739013133446,-2448.76,0.00012365,2]
[352241835,1739013133457,-500.0,0.00012366,2]
[352241836,1739013133468,-500.0,0.00012366,2]
[352241837,1739013133478,-647.25,0.00012366,2]
[352241838,1739013133488,-500.0,0.00012366,2]
[352241839,1739013133498,-500.0,0.00012366,2]
[352241840,1739013133508,-500.0,0.00012366,2]
[352241841,1739013133518,-510.2,0.00012366,2]
[352241842,1739013133527,-500.0,0.00012366,2]
[352241843,1739013133536,-500.0,0.00012366,2]
[352241844,1739013133546,-281.17072421,0.00012366,2]
[352241845,1739013133556,-2124.11,0.00012366,2]
[352241846,1739013133568,-5893.56,0.00012366,2]
[352241847,1739013133578,-3358.801698,0.00012366,2]
[352241848,1739013133589,-1726.29,0.00012366,2]
[352241849,1739013133598,-2160.36,0.00012366,2]
[352241850,1739013133608,-576.21,0.00012366,2]
[352241851,1739013133619,-1327.73,0.00012366,2]
[352241852,1739013133629,-3645.58,0.00012366,2]
[352241853,1739013133639,-3378.237504,0.00012366,2]
[352241854,1739013133651,-152.091761,0.00012366,2]
[352241855,1739013133660,-774.41,0.00012366,2]
[352241856,1739013133670,-2948.09,0.00012366,2]
[352241857,1739013133680,-2267.8,0.00012366,2]
[352241858,1739013133690,-1001.04,0.00012366,2]
[352241859,1739013133699,-601.52894794,0.00012366,2]
[352241860,1739013133709,-1847.11,0.00012366,2]
[352241861,1739013133718,-500.0,0.00012366,2]
[352241862,1739013133728,-1735.24,0.00012366,2]
[352241863,1739013133739,-1678.32,0.00012366,2]
[352241864,1739013133748,-3512.39,0.00012366,2]
[352241865,1739013133758,-3805.67,0.00012366,2]
[352241866,1739013133768,-2607.62,0.00012366,2]
[352241867,1739013133779,-3258.61,0.00012366,2]
[352241868,1739013133789,-4739.99,0.00012366,2]
[352241869,1739013133800,-12222.98,0.00012366,2]
[352241870,1739013133810,-3871.33,0.00012366,2]
[352241871,1739013133819,-5557.03,0.00012366,2]
[352241872,1739013133830,-500.0,0.00012366,2]
[352241873,1739013133840,-8192.71,0.00012366,2]
[352241874,1739013133850,-2796.47,0.00012366,2]
[352241875,1739013133859,-538.39,0.00012366,2]
[352241876,1739013133869,-555.96,0.00012366,2]
[352241877,1739013133879,-1656.22,0.00012366,2]
[352241878,1739013133889,-5463.22,0.00012366,2]
[352241879,1739013133898,-4249.23,0.00012366,2]
[352241880,1739013133908,-4928.16,0.00012366,2]
[352241881,1739013133918,-152.31259877,0.00012366,2]
[352241882,1739013133927,-500.0,0.00012366,2]
[352241883,1739013133936,-500.0,0.00012366,2]
[352241884,1739013133945,-500.0,0.00012367,2]
[352241885,1739013133955,-500.0,0.00012367,2]
[352241886,1739013133964,-787.27,0.00012367,2]
[352241887,1739013133974,-500.0,0.00012367,2]
[352241888,1739013133984,-517.87,0.00012367,2]
[352241889,1739013133994,-500.0,0.00012367,2]
[352241890,1739013134003,-641.87997397,0.00012367,2]
[352241891,1739013134013,-500.0,0.00012367,2]
[352241892,1739013134022,-500.0,0.00012367,2]
[352241893,1739013134031,-661.99,0.00012367,2]
[352241894,1739013134040,-500.0,0.00012367,2]
[352241895,1739013134049,-500.0,0.00012367,2]
[352241896,1739013134058,-821.02,0.00012367,2]
[352241897,1739013134067,-500.0,0.00012367,2]
[352241898,1739013134077,-1772.05,0.00012367,2]
[352241899,1739013134087,-500.0,0.00012367,2]
[352241900,1739013134096,-500.0,0.00012367,2]
[352241901,1739013134106,-500.0,0.00012367,2]
[352241902,1739013134116,-964.41,0.00012367,2]
[352241903,1739013134125,-896.8,0.00012367,2]
[352241904,1739013134135,-500.0,0.00012367,2]
[352241905,1739013134144,-2054.77,0.00012367,2]
[352241906,1739013134154,-500.0,0.00012367,2]
[352241907,1739013134164,-500.0,0.00012367,2]
[352241908,1739013134173,-1316.88,0.00012367,2]
[352241909,1739013134183,-500.0,0.00012367,2]
[352241910,1739013134192,-500.0,0.00012367,2]
[352241911,1739013134202,-500.0,0.00012367,2]
[352241912,1739013134211,-2052.96,0.00012367,2]
[352241913,1739013134221,-500.0,0.00012367,2]
[352241914,1739013134230,-500.0,0.00012367,2]
[352241915,1739013134239,-500.0,0.00012367,2]
[352241916,1739013134248,-500.0,0.00012367,2]
[352241917,1739013134257,-811.38,0.00012367,2]
[352241918,1739013134267,-1019.72,0.00012367,2]
[352241919,1739013134276,-500.0,0.00012367,2]
[352241920,1739013134286,-500.0,0.00012367,2]
[352241921,1739013134296,-705.84,0.00012367,2]
[352241922,1739013134305,-500.0,0.00012367,2]
[352241923,1739013134315,-2537.39,0.00012367,2]
[352241924,1739013134324,-500.0,0.00012367,2]
[352241925,1739013134333,-716.34,0.00012367,2]
[352241926,1739013134342,-500.0,0.00012367,2]
[352241927,1739013134352,-936.48,0.00012367,2]
[352241928,1739013134361,-1011.69,0.00012367,2]
[352241929,1739013134372,-500.0,0.00012367,2]
[352241930,1739013134381,-500.0,0.00012367,2]
[352241931,1739013134390,-874.09,0.00012367,2]
[352241932,1739013134399,-726.83,0.00012367,2]
[352241933,1739013134408,-500.0,0.00012367,2]
[352241934,1739013134418,-500.0,0.00012367,2]
[352241935,1739013134428,-500.0,0.00012367,2]
[352241936,1739013134437,-500.0,0.00012367,2]
[352241937,1739013134449,-1536.23,0.00012367,2]
[352241938,1739013134458,-500.0,0.00012367,2]
[352241939,1739013134467,-500.0,0.00012367,2]
[352241940,1739013134476,-773.18,0.00012367,2]
[352241941,1739013134485,-505.99919679,0.00012367,2]
[352241942,1739013134495,-611.63,0.00012367,2]
[352241943,1739013134504,-532.87,0.00012367,2]
[352241944,1739013134513,-500.0,0.00012367,2]
[352241945,1739013134523,-708.91,0.00012367,2]
[352241946,1739013134533,-500.0,0.00012367,2]
[352241947,1739013134542,-2071.14,0.00012367,2]
[352241948,1739013134552,-500.0,0.00012367,2]
[352241949,1739013134561,-500.0,0.00012367,2]
[352241950,1739013134570,-818.79,0.00012367,2]
[352241951,1739013134580,-500.0,0.00012367,2]
[352241952,1739013134589,-981.65,0.00012367,2]
[352241953,1739013134598,-505.23104258,0.00012367,2]
[352241954,1739013134607,-500.0,0.00012367,2]
[352241955,1739013134616,-947.55,0.00012367,2]
[352241956,1739013134626,-500.0,0.00012367,2]
[352241957,1739013134635,-2250.99,0.00012367,2]
[352241958,1739013134644,-500.0,0.00012367,2]
[352241959,1739013134653,-500.0,0.00012367,2]
[352241960,1739013134662,-500.0,0.00012367,2]
[352241961,1739013134672,-500.0,0.00012367,2]
[352241962,1739013134682,-500.0,0.00012367,2]
[352241963,1739013134691,-500.0,0.00012367,2]
[352241964,1739013134700,-500.0,0.00012367,2]
[352241965,1739013134709,-500.0,0.00012367,2]
[352241966,1739013134719,-365.18551087,0.00012367,2]
[352241967,1739013134727,-500.0,0.00012367,2]
[352241968,1739013134737,-559.06,0.00012367,2]
[352241969,1739013134746,-514.45,0.00012367,2]
[352241970,1739013134755,-522.95490872,0.00012367,2]
[352241971,1739013134764,-854.4,0.00012367,2]
[352241972,1739013134773,-500.0,0.00012367,2]
[352241973,1739013134782,-513.19,0.00012367,2]
[352241974,1739013134792,-1032.34,0.00012367,2]
[352241975,1739013134801,-500.0,0.00012367,2]
[352241976,1739013134810,-500.0,0.00012367,2]
[352241977,1739013134819,-500.0,0.00012367,2]
[352241978,1739013134829,-500.0,0.00012367,2]
[352241979,1739013134838,-482.18370851,0.00012367,2]
[352241980,1739013134847,-1046.28,0.00012367,2]
[352241981,1739013134856,-2383.11,0.00012367,2]
[352241982,1739013134865,-626.31,0.00012367,2]
[352241983,1739013134874,-500.0,0.00012367,2]
[352241984,1739013134883,-614.14,0.00012367,2]
[352241985,1739013134893,-966.17,0.00012367,2]
[352241986,1739013134902,-500.0,0.00012367,2]
[352241987,1739013134911,-1038.87,0.00012367,2]
[352241988,1739013134920,-500.0,0.00012367,2]
[352241989,1739013134929,-500.0,0.00012367,2]
[352241990,1739013134938,-1106.05,0.00012367,2]
[352241991,1739013134947,-2015.73,0.00012367,2]
[352241992,1739013134956,-500.0,0.00012367,2]
[352241993,1739013134966,-500.0,0.00012367,2]
[352241994,1739013134976,-1931.33,0.00012367,2]
[352241995,1739013134986,-500.0,0.00012367,2]
[352241996,1739013134995,-505.96421061,0.00012367,2]
[352241997,1739013135004,-559.49,0.00012367,2]
[352241998,1739013135014,-500.0,0.00012367,2]
[352241999,1739013135023,-500.0,0.00012367,2]
[352242000,1739013135115,-1077.31,0.00012367,2]
[352242001,1739013135125,-505.4530189,0.00012367,2]
[352242002,1739013135134,-500.0,0.00012367,2]
[352242003,1739013135144,-932.69,0.00012367,2]
[352242004,1739013135153,-2072.47,0.00012367,2]
[352242005,1739013135161,-2541.69,0.00012367,2]
[352242006,1739013135171,-501.92,0.00012367,2]
[352242007,1739013135180,-721.58,0.00012367,2]
[352242008,1739013135190,-761.18,0.00012367,2]
[352242009,1739013135200,-500.0,0.00012367,2]
[352242010,1739013135209,-1724.83,0.00012367,2]
[352242011,1739013135218,-4538.82,0.00012367,2]
[352242012,1739013135227,-500.0,0.00012367,2]
[352242013,1739013135236,-2030.46,0.00012367,2]
[352242014,1739013135246,-500.0,0.00012367,2]
[352242015,1739013135255,-902.21,0.00012367,2]
[352242016,1739013135263,-500.0,0.00012367,2]
[352242017,1739013135272,-2636.15,0.00012367,2]
[352242018,1739013135282,-2002.7,0.00012367,2]
[352242019,1739013135292,-504.60288966,0.00012367,2]
[352242020,1739013135301,-705.09,0.00012367,2]
[352242021,1739013135311,-500.0,0.00012367,2]
[352242022,1739013135320,-646.11564181,0.00012367,2]
[352242023,1739013135329,-2090.85,0.00012367,2]
[352242024,1739013135338,-1600.49,0.00012367,2]
[352242025,1739013135347,-1065.95,0.00012367,2]
[352242026,1739013135356,-2402.98,0.00012367,2]
[352242027,1739013135365,-2859.61,0.00012367,2]
[352242028,1739013135379,-500.0,0.00012367,2]
[352242029,1739013135388,-500.0,0.00012367,2]
[352242030,1739013135398,-2754.41,0.00012367,2]
[352242031,1739013135407,-879.4,0.00012367,2]
[352242032,1739013135417,-2692.97,0.00012367,2]
[352242033,1739013135426,-3004.1,0.00012367,2]
[352242034,1739013135435,-1467.50457014,0.00012367,2]
[352242035,1739013135923,-1196.73651874,0.00012367,2]
[352242036,1739013135941,-274.05744626,0.0001223,2]
[352242037,1739013136288,-1069.8025,0.00010997,3]